Cogmind - Beta 11.1 @@@ ROGUE MODE // 2022.04.23 @ 16:21:39 Player: Togure Result: Destroyed by G-34 Mercenary with Small Laser Performance ------------- Evolutions (0) 0 Regions Visited (1) 200 Robots Destroyed (8) 40 Value Destroyed (252) 252 Prototype IDs (0) 0 Alien Tech Used (0) 0 Bonus (0) 0 TOTAL SCORE: 492 Bonus ------- None Cogmind --------- Core Integrity 0/250 Matter 261/300 Energy 135/160 System Corruption 2% Temperature Cool (6) Movement Walking (190) Ox1 Location -10/Materials Parts ------- > --- POWER (1) -------- Light Nuclear Core > --- PROPULSION (2) --- Aluminum Leg > --- UTILITY (2) ------ Small Storage Unit Visual Processing Unit > --- WEAPON (2) ------- Light Assault Rifle > --- INVENTORY (8) ---- Ion Engine Medium Storage Unit Large Storage Unit High-capacity Matter Pod (200) Sensor Array Small Laser Peak State ------------ > --- POWER ------------ Light Nuclear Core > --- PROPULSION ------- Aluminum Leg > --- UTILITY ---------- Small Storage Unit Visual Processing Unit > --- WEAPON ----------- Light Assault Rifle > --- INVENTORY -------- Ion Engine Medium Storage Unit Large Storage Unit High-capacity Matter Pod Sensor Array Small Laser [Rating: 8] Favorites ----------- Power Ion Engine Engine Ion Engine Power Core Light Nuclear Core Propulsion Aluminum Leg Leg Aluminum Leg Utility Small Storage Unit Device Sensor Array Storage Small Storage Unit Processor Visual Processing Unit Weapon Small Laser Energy Gun Small Laser Ballistic Gun Light Assault Rifle Ballistic Cannon Light Cannon Build | -11 -10 ------- Run | Scr Mat Slots Evolved . | . . Power . | . . Propulsion . | . . Utility . | . . Weapon . | . . Parts Attached 14 | 6 8 Power 3 | 1 2 Engine 2 | 1 1 Core 1 | . 1 Reactor . | . . Propulsion 4 | 2 2 Treads . | . . Leg 4 | 2 2 Wheel . | . . Hover . | . . Flight . | . . Utility 3 | 1 2 Device 1 | . 1 Storage 1 | 1 . Processor 1 | . 1 Hackware . | . . Protection . | . . Artifact . | . . Weapon 4 | 2 2 Energy Gun 2 | 2 . Energy Cannon . | . . Ballistic Gun 1 | . 1 Ballistic Cannon 1 | . 1 Launcher . | . . Special Weapon . | . . Impact Weapon . | . . Slashing Weapon . | . . Piercing Weapon . | . . Special Melee Weapon . | . . Unidentified Prototypes . | . . Parts Lost 8 | . 8 Power 1 | . 1 Propulsion 3 | . 3 Utility 1 | . 1 Weapon 3 | . 3 Highest Loss Streak 5 | . 5 To Critical Strikes . | . . Average Slot Usage (%) 85 | . 85 Engine 13 | . 13 Leg 23 | . 23 Device 5 | . 5 Storage 14 | . 14 Processor 2 | . 2 Energy Gun 20 | . 20 Ballistic Cannon 2 | . 2 Naked Turns . | . . Heaviest Build 14 | 13 14 Greatest Support 20 | 20 20 Greatest Overweight (x) 4 | 1 4 Average Overweight (x) . | . . Largest Inventory Capacity 8 | 8 8 Average Capacity 7 | 7 8 Most Carried 8 | 3 8 Average Carried 5 | 1 5 Final Capacity 8 | 8 8 Final Carried 6 | 2 6 Class Distribution -------------------- 89% | Mutant 10% | Scavenger-Mutant Dominant Class ---------------- Mutant | -10/Materials Resources | -11 -10 ----------- Run | Scr Mat Matter Collected 516 | 225 291 Remotely . | . . Salvage Created 348 | . 348 Parts 15 | . 15 Haulers Intercepted . | . . Recyclers Shooed . | . . Parts Field Recycled . | . . Retrieved Matter . | . . Parts Self-Destructed . | . . Prevented . | . . Kills | -11 -10 ------- Run | Scr Mat Combat Hostiles Destroyed 6 | . 6 Guns 4 | . 4 Cannons 2 | . 2 Classes Destroyed 3 | . 3 Recycler 1 | . 1 Watcher 1 | . 1 Grunt 6 | . 6 Best Kill Streak 5 | . 5 Combat Bots Only 4 | . 4 Max Kills in Single Turn 1 | . 1 Gunslinging . | . . Exploded . | . . Melee . | . . Uniques/NPCs Destroyed . | . . Combat | -11 -10 -------- Run | Scr Mat Damage Taken 965 | . 965 Core 257 | . 257 Absorbed by Shields . | . . Core Remaining (%) 100 | 100 . Volleys Fired 40 | . 40 Largest 2 | . 2 Hottest 90 | . 90 Shots Fired 53 | . 53 Gun 44 | . 44 Cannon 9 | . 9 Launcher . | . . Special . | . . Kinetic 23 | . 23 Thermal 30 | . 30 Explosive . | . . Electromagnetic . | . . Robot Hit Streak 8 | . 8 Robot Miss Streak 4 | . 4 Penetration Max . | . . Secondary Targets . | . . Shots Hit Robots 32 | . 32 Core Hits 14 | . 14 Critical Kills . | . . Critical Parts Destroyed . | . . Critical Strikes 1 | . 1 Burn 1 | . 1 Melee Attacks . | . . Impact . | . . Slashing . | . . Piercing . | . . Sneak Attacks . | . . Combat Hostiles . | . . Follow-up Attacks . | . . Damage Inflicted 426 | . 426 Guns 263 | . 263 Cannons 163 | . 163 Explosions . | . . Melee . | . . Ramming . | . . Kinetic 226 | . 226 Thermal 200 | . 200 Explosive . | . . Electromagnetic . | . . Impact . | . . Slashing . | . . Piercing . | . . Highest Corruption 2 | . 2 Average Corruption 2 | . 2 Corruption Purged . | . . Corruption Blocked . | . . Effects 3 | . 3 Message Errors 1 | . 1 Matter Fused 1 | . 1 Heat Flow Errors 1 | . 1 Overload Shots . | . . Overflow Damage . | . . Projectiles . | . . Explosions . | . . Melee . | . . Knockbacks 1 | . 1 Impact . | . . Kinetic 1 | . 1 Secondary . | . . Self-Inflicted Damage . | . . Shots . | . . Rammed . | . . Targets Rammed . | . . Kicked . | . . Crushed . | . . Highest Temperature 417 | . 417 Average Temperature 184 | . 184 Received Heat Transfer 543 | . 543 Effects 8 | . 8 Shutdowns 2 | . 2 Interference 1 | . 1 Damage (minor) 2 | . 2 Damage (major) 3 | . 3 Siege Activations . | . . Robots Corrupted . | . . Combat Hostiles . | . . Parts Fried . | . . Impact Corruptions . | . . Robots Melted . | . . Combat Hostiles . | . . Parts Melted 2 | . 2 Heat Transferred 595 | . 595 Parts Sabotaged . | . . Parts Stolen . | . . Parts Stripped . | . . Power Chain Reactions . | . . Missiles Intercepted . | . . Alert | -11 -10 ------- Run | Scr Mat Peak Influence 117 | . 117 Initial . | . . Average 31 | . 35 Maximum Alert Level . | . . Low Security (%) 100 | 100 100 Level 1 . | . . Level 2 . | . . Level 3 . | . . Level 4 . | . . Level 5 . | . . High Security . | . . Max Security . | . . Squads Dispatched 1 | . 1 Investigation . | . . Extermination . | . . Reinforcement 1 | . 1 Assault . | . . Garrison . | . . Intercept . | . . Searches Triggered . | . . Construction Impeded . | . . Haulers Reinforced . | . . Active Scanning Responses . | . . Cargo Convoy Interrupts . | . . Stealth | -11 -10 --------- Run | Scr Mat Distress Signals 2 | . 2 Communications Jammed . | . . Distress Signals . | . . Times Spotted 10 | . 10 Peak Tracking Total 6 | . 6 Tactical Retreats . | . . Traps | -11 -10 ------- Run | Scr Mat Traps Triggered 1 | . 1 Indirectly . | . . Trap Hack Attempts . | . . Triggered . | . . Disarmed . | . . Reprogrammed . | . . Reused . | . . Traps Extracted . | . . Installed . | . . Triggered . | . . Machines | -11 -10 ---------- Run | Scr Mat Machines Disabled . | . . Max in Single Turn . | . . Machines Sabotaged . | . . Garrisons Compromised . | . . Overloaded Fab Kills . | . . Hacking | -11 -10 --------- Run | Scr Mat Machines Accessed 1 | . 1 Terminals 1 | . 1 Fabricators . | . . Repair Stations . | . . Recycling Units . | . . Scanalyzers . | . . Garrison Access . | . . Total Hacks 2 | . 2 Successful 1 | . 1 Failed 1 | . 1 Catastrophic . | . . Database Lockouts . | . . Manual . | . . Terminals 2 | . 2 Fabricators . | . . Repair Stations . | . . Recycling Units . | . . Scanalyzers . | . . Garrison Access . | . . Terminal Hacks 1 | . 1 Zone Layout 1 | . 1 Fabricator Hacks . | . . Repair Station Hacks . | . . Recycling Unit Hacks . | . . Scanalyzer . | . . Garrison Access Hacks . | . . Unauthorized Hacks . | . . Terminals . | . . Fabricators . | . . Repair Stations . | . . Recycling Units . | . . Scanalyzers . | . . Garrison Access . | . . Data Cores Recovered . | . . Used . | . . Hacking Detections 1 | . 1 Full Trace Events . | . . Feedback Events . | . . Feedback Blocked . | . . Robot Schematics Acquired . | . . Robots Built . | . . Authchips . | . . Time . | . . Total Robot Build Rating . | . . Part Schematics Acquired . | . . Parts Built . | . . Authchips . | . . Time . | . . Total Part Build Rating . | . . Parts Repaired . | . . Time . | . . Parts Recycled . | . . Recycled Matter . | . . Retrieved Matter . | . . Retrieved Components . | . . Parts Scanalyzed . | . . Part Schematics Acquired . | . . Parts Damaged . | . . Bothacking | -11 -10 ------------ Run | Scr Mat Used RIF Installer . | . . Robots Hacked . | . . Non-combat . | . . Combat . | . . Robot Hacks Applied . | . . Relay Couplers Released . | . . Fabnet Peak Effective % . | . . Robots Rewired . | . . Allies Hacked . | . . Hacks Repelled . | . . Allies | -11 -10 -------- Run | Scr Mat Total Allies . | . . Largest Group . | . . Highest-Rated Group . | . . Highest-Rated Ally . | . . Total Orders . | . . Ally Attacks . | . . Total Damage . | . . Kills . | . . Allies Corrupted . | . . Allies Melted . | . . Intel | -11 -10 ------- Run | Scr Mat Robot Analysis Total . | . . Derelict Logs Recovered . | . . Drone Launches . | . . Drone Recoveries . | . . Exploration | -11 -10 ------------- Run | Scr Mat Turns Passed 498 | 63 435 Spaces Moved 276 | 46 230 Core 19 | 10 9 Treads . | . . Legs 257 | 36 221 Wheels . | . . Hover . | . . Flight . | . . Fastest Speed 50 | 50 120 Average Speed 125 | 109 128 Slowest Speed 250 | 120 250 Overloaded Moves . | . . Propulsion Burnouts . | . . Robots Hopped . | . . Cave-ins Triggered . | . . Exploration Rate (%) 22 | 4 40 Regions Visited 1 Branch Regions . Pre-discovered Areas . | . . Known Exits Taken . | . . Unknown Exits Taken 1 | 1 . Scrap Searched . | . . Spaces Dug . | . . Terrain Destroyed . | . . Melee . | . . Projectile . | . . AOE . | . . Terrain Rammed . | . . Walls Destroyed . | . . Machines Disabled . | . . Actions | -11 -10 --------- Run | Scr Mat Total 375 | 59 316 Wait 30 | . 30 Move 275 | 45 230 Hop . | . . Pick Up 15 | 8 7 Fast Attach 4 | . 4 Attach 9 | 6 3 Detach . | . . Swap 1 | . 1 Drop 1 | . 1 Fire 40 | . 40 Melee . | . . Ram . | . . Kick . | . . Crush . | . . Escape Stasis . | . . Rewire . | . . Trap . | . . Miscellaneous . | . . Route ------- -11/Scrapyard -10/Materials (discovered 2 exits: [Mat] / [*Min]) History --------- Turn | Location | Event 6 | -11/Scrapyard | Discovered new exit (range 16) 64 | -11/Scrapyard | Entered Materials 137 | -10/Materials | Discovered new exit (range 14) 310 | -10/Materials | Discovered new exit (range 14) 317 | -10/Materials | Build established: Mutant 380 | -10/Materials | Core integrity fell below 50% 412 | -10/Materials | Lost 5 parts (2n1u2w) 488 | -10/Materials | Core integrity fell below 20% 499 | -10/Materials | Destroyed by G-34 Mercenary with Small Laser Last Messages --------------- 00428_ Acquired Aluminum Leg. 00431_ K-01 Serf collects debris. 00432_ R-06 Scavenger collects Ion Engine. 00435_ R-06 Scavenger collects Com. Wheel. 00435_ K-01 Serf collects debris. 00460_ G-47 Trooper knocked back. 00461_ K-01 Serf cleans the Integration Channel. 00462_ R-06 Scavenger collects Tractor Beam. 00463_ Lgt. Cannon destroyed. 00467_ K-01 Serf collects debris. 00471_ Ion Engine destroyed. 00473_ K-01 Serf cleans the Integration Channel. 00477_ K-01 Serf collects debris. 00481_ K-01 Serf cleans the Integration Channel. 00483_ Aluminum Leg destroyed. 00487_ K-01 Serf cleans the Integration Channel. 00491_ G-47 Trooper destroyed. 00493_ Acquired 40 matter. 00495_ Acquired Lgt. Nuclear Core. 00498_ K-01 Serf collects debris. Map ----- +----------------------------------------------------+ | ????????????????????????# #????????# ## | | ????????????????????????# #???????## ## | | ????????????????????????# " #???????# # | | ????????????????????????# "" #???????# # | | ????????????????????????# "" ######### + | | ??????????????????? ? ?# """ # ## # | | ???????????????????? # "" # ! ## # | | ?????????????????????? + """ # ### ## | | ????????????????????????# """ # #?# ## | | ????????????????????????# " " # #?# ## | | ????????????????????????# " # #?# ## | | ????????????????????????## ##+#####?# #? | | ?????????????????????????# % #???# ## | | ?????????????????????????# " #???# | | ?????????????????????????# "" #???# #### | | ?????????????????????????# "" #???# #??? | | ?????????????????????????# """ ### ##### #### | | ????????????????#######??# "" #?# | | ????????????????#""""""??# """ #?# | | ????????????????#" |"! "?# """ #?# | | ???????????###+##" "## """ ####+######## | | ????????? " # #?# | | ????????? < %% u # #?# | | ????????? k # #?# | | ???????????###+## ##/######## #?# | | ????????????????#########@ #?# #?## # | | ????????????????????????#%%% #?# #??# # | | ????????????????????????# """ #?# #??# # | | ????????????????????????#!!g""" #?# #??# # | | ????????????????????????#!! """ #########/###??# # | | ????????????????????????#! # # #??### # | | ????????????????????????# """ # # #### = | | ????????????????????????# """ # # | | ????????????????????????# """ # + T | | ????????????????????????# # # | | ????????????????????????# ??# """ ###### | | ????????????????????????####+##?# """""#????###+# | | ????????????????????????????????# """""#????# | | ????????????????????????????????# """""#????# "" | | ????????????????????????????????# """ #????# "Y | | ????????????????????????????????# #????# | | ????????????????????????????????#########????# | | ?????????????????????????????????????????????# | | ?????????????????????????????????????????????##### | | ??????????????????????????????????????????######## | | ??????????????????????????????????????????# | | ?????????????????????????????????########## < | | ????????????????????????????????? | | ????????????????????????????????? #########+##### | | ?????????????????????????????????????????????????? | +----------------------------------------------------+ Best States ------------- Heat Dissipation 25 Energy Generation 10 Energy Capacity 250 Matter Stores 300 Matter Capacity 300 Sight Range 18 Robot Scan Range 14 Terrain Scan Density 10 Evasion (%) 55 Item Schematics ----------------- None Robot Schematics ------------------ None Fabricated ------------ Nothing Alien Tech Used ----------------- None Achievements -------------- None Challenges ------------ None Game ------ Seed DerelictQuantumFrame Manual? 0 Play Time 00:07:26 Cumulative 20.1 hours Start 2022.04.23 @ 16:13:17 End 2022.04.23 @ 16:21:39 Sessions 1 Manual Loads 0 Difficulty Rogue Special Mode None Game No. 39 Rogue 39 Adventurer 0 Explorer 0 Win Type - Total 0 Types 0/0/0/0/0/0/0/0/0 Lore% 20 Gallery% 16 Achievement% 17 Wizard Run 0 Options --------- ASCII 0 Keyboard 0 Movement Mouse Keybinds 0 Fullscreen 1 Font 24/Smallcaps Map View 76x50 Tactical HUD 1 Map Filters NONE Filters NONE Steam 1 RUN: 15d72d3f-c85b-4cff-b8cd-3c962ba1d04b